Cogmind - Beta 16.1 @@@ ROGUE MODE // 2026.03.21 @ 13:56:17 Player: Skrub Result: Destroyed by G-34 Mercenary with Small Laser Performance ------------- Evolutions (0) 0 Regions Visited (1) 200 Robots Destroyed (12) 60 Value Destroyed (221) 221 Prototype IDs (0) 0 Alien Tech Used (0) 0 Bonus (0) 0 TOTAL SCORE: 481 Bonus ------- None Cogmind --------- Core Integrity 0/250 Matter 270/300 Energy 79/100 System Corruption 0% Temperature Cool (6) Movement Core (100) Ox1 Location -10/Materials Parts ------- > --- POWER (1) -------- (None) > --- PROPULSION (2) --- (None) > --- UTILITY (2) ------ ECM Suite > --- WEAPON (2) ------- Hammer > --- INVENTORY (5) ---- Huge Storage Unit High-capacity Battery (250) Small Laser Small Laser Light Assault Rifle Peak State ------------ > --- POWER ------------ Ion Engine > --- PROPULSION ------- Wheel Compact Wheel > --- UTILITY ---------- Small Storage Unit High-capacity Battery > --- WEAPON ----------- Small Laser Light Assault Rifle > --- INVENTORY -------- Light Ion Engine [Rating: 7] Favorites ----------- Power Light Ion Engine Engine Light Ion Engine Propulsion Wheel Wheel Wheel Utility Heat Sink Device Heat Sink Storage Small Storage Unit Weapon Small Laser Energy Gun Small Laser Ballistic Gun Light Assault Rifle Impact Weapon Hammer Build | -11 -10 ------- Run | Yrd Mat Slots Evolved . | . . Power . | . . Propulsion . | . . Utility . | . . Weapon . | . . Parts Attached 13 | 5 8 Power 2 | . 2 Engine 2 | . 2 Core . | . . Reactor . | . . Propulsion 2 | 2 . Treads . | . . Leg . | . . Wheel 2 | 2 . Hover . | . . Flight . | . . Utility 4 | 1 3 Device 2 | . 2 Storage 2 | 1 1 Processor . | . . Hackware . | . . Protection . | . . Artifact . | . . Weapon 5 | 2 3 Energy Gun 3 | 1 2 Energy Cannon . | . . Ballistic Gun 1 | 1 . Ballistic Cannon . | . . Launcher . | . . Special Weapon . | . . Impact Weapon 1 | . 1 Slashing Weapon . | . . Piercing Weapon . | . . Special Melee Weapon . | . . Unidentified Prototypes . | . . Parts Lost 6 | . 6 Power 2 | . 2 Propulsion 2 | . 2 Utility 1 | . 1 Weapon 1 | . 1 Highest Loss Streak 4 | . 4 To Critical Strikes . | . . Average Backups 3 | 2 3 Power . | 1 . Propulsion . | . . Utility 1 | . 1 Weapon 1 | . 1 Tool/Special . | . . Unused Backups 2 | . 2 Power . | . . Propulsion . | . . Utility 2 | . 2 Weapon . | . . Tool/Special . | . . Average Slot Usage (%) 86 | . 86 Engine 13 | . 13 Wheel 18 | . 18 Device 17 | . 17 Storage 8 | . 8 Energy Gun 23 | . 23 Ballistic Gun 2 | . 2 Impact Weapon 1 | . 1 Peak Build Rating 7 | 4 7 Average Rating 5 | 3 6 On Entrance 2 | . 4 Avg Prop Armor Cover (%) . | . . Naked Turns . | . . Heaviest Build 17 | 6 17 Greatest Support 26 | 26 26 Greatest Overweight (x) 2 | 1 2 Average Overweight (x) . | . . Largest Inventory Capacity 8 | 8 8 Average Capacity 6 | 7 6 Most Carried 5 | 4 5 Average Carried 3 | 2 3 Final Capacity 8 | 8 5 Final Carried 5 | 3 5 Class Distribution -------------------- 100% | Mutant Dominant Class ---------------- Mutant | -10/Materials Resources | -11 -10 ----------- Run | Yrd Mat Matter Collected 340 | 250 90 Remotely . | . . Salvage Created 415 | 87 328 Parts 19 | 2 17 Haulers Intercepted . | . . Recyclers Shooed 1 | . 1 Parts Field Recycled . | . . Retrieved Matter . | . . Parts Self-Destructed . | . . Prevented . | . . Parts Restored . | . . Kills | -11 -10 ------- Run | Yrd Mat Combat Hostiles Destroyed 10 | . 10 Guns 10 | . 10 Classes Destroyed 3 | 1 2 Recycler 2 | 1 1 Swarmer 6 | . 6 Grunt 4 | . 4 Best Kill Streak 5 | 1 5 Combat Bots Only 5 | . 5 Max Kills in Single Turn 1 | 1 1 Gunslinging . | . . Exploded . | . . Melee . | . . Uniques/NPCs Destroyed . | . . Combat | -11 -10 -------- Run | Yrd Mat Hostile Shots Fired 77 | . 77 Missed 15 | . 15 Hits 62 | . 62 Projectile 62 | . 62 Critical Strikes 1 | . 1 Damage Taken 683 | . 683 Core 257 | . 257 Absorbed by Shields . | . . Core Remaining (%) 100 | 100 . Volleys Fired 78 | 13 65 Largest 2 | 1 2 Hottest 90 | 40 90 Shots Fired 133 | 13 120 Gun 133 | 13 120 Cannon . | . . Launcher . | . . Special . | . . Kinetic 10 | . 10 Thermal 123 | 13 110 Explosive . | . . Electromagnetic . | . . Robot Hit Streak 5 | 5 5 Robot Miss Streak 3 | 2 3 Penetration Max . | . . Secondary Targets 1 | . 1 Max Gunslinging Chain 1 | . 1 Shots Hit Robots 56 | 10 46 Core Hits 20 | 2 18 Critical Kills . | . . Critical Parts Destroyed 1 | . 1 Critical Strikes 4 | . 4 Burn 3 | . 3 Smash 1 | . 1 Melee Attacks 10 | . 10 Impact 10 | . 10 Slashing . | . . Piercing . | . . Sneak Attacks . | . . Combat Hostiles . | . . Follow-up Attacks . | . . Damage Inflicted 696 | 108 588 Guns 631 | 108 523 Cannons . | . . Explosions . | . . Melee 65 | . 65 Ramming . | . . Kinetic . | . . Thermal 631 | 108 523 Explosive . | . . Electromagnetic . | . . Impact 65 | . 65 Slashing . | . . Piercing . | . . Highest Corruption . | . . Average Corruption . | . . Corruption Purged . | . . Corruption Blocked . | . . Overload Shots . | . . Overflow Damage 29 | . 29 Projectiles . | . . Explosions . | . . Melee 29 | . 29 Knockbacks 1 | . 1 Impact 1 | . 1 Kinetic . | . . Secondary . | . . Self-Inflicted Damage . | . . Shots . | . . Rammed . | . . Targets Rammed . | . . Kicked . | . . Crushed . | . . Highest Temperature 312 | . 312 Average Temperature 97 | . 97 Received Heat Transfer 309 | . 309 Siege Activations . | . . Martial Activations . | . . Shielding Activations . | . . Robots Disrupted . | . . Combat Hostiles . | . . Robots Corrupted . | . . Combat Hostiles . | . . Parts Fried . | . . Impact Corruptions 1 | . 1 Robots Melted . | . . Combat Hostiles . | . . Parts Melted 4 | . 4 Heat Transferred 1860 | 250 1610 Parts Sabotaged . | . . Parts Stolen . | . . Parts Stripped . | . . Power Chain Reactions . | . . Alert | -11 -10 ------- Run | Yrd Mat Maximum Alert Level . | . . Low Security (%) 100 | 100 100 Level 1 . | . . Level 2 . | . . Level 3 . | . . Level 4 . | . . Level 5 . | . . High Security . | . . Max Security . | . . Peak Influence 140 | 5 140 Initial . | . . Average 57 | . 66 Influence Increases 341 | 5 336 Destroy 0b10 Robot/C 200 | . 200 Destroy 0b10 Robot/NC 10 | 5 5 Destroy Leader 40 | . 40 Successful Hack 30 | . 30 Destroy Structure 1 | . 1 Lose Combat Pursuer 60 | . 60 Influence Decreases 341 | 5 336 Time Decay 282 | 5 277 Lost Part 59 | . 59 Squads Dispatched 1 | . 1 Investigation . | . . Extermination . | . . Reinforcement 1 | . 1 Assault . | . . Garrison . | . . Intercept . | . . Searches Triggered . | . . Construction Impeded . | . . Haulers Reinforced . | . . Active Scanning Responses . | . . Cargo Convoy Interrupts . | . . Stealth | -11 -10 --------- Run | Yrd Mat Distress Signals 1 | . 1 Communications Jammed . | . . Distress Signals . | . . Times Spotted 18 | . 18 Peak Tracking Total 6 | . 6 Tactical Retreats 1 | . 1 Traps | -11 -10 ------- Run | Yrd Mat Traps Triggered . | . . Indirectly . | . . Trap Hack Attempts . | . . Triggered . | . . Disarmed . | . . Reprogrammed . | . . Reused . | . . Traps Extracted . | . . Installed . | . . Triggered . | . . Machines | -11 -10 ---------- Run | Yrd Mat Machines Disabled . | . . Max in Single Turn . | . . Machines Repaired . | . . Machines Dismantled . | . . Machines Sabotaged . | . . Overloaded Fab Kills . | . . Hacking | -11 -10 --------- Run | Yrd Mat Machines Accessed 7 | . 7 Terminals 5 | . 5 Fabricators . | . . Repair Stations 1 | . 1 Recycling Units 1 | . 1 Scanalyzers . | . . Garrison Access . | . . Total Hacks 23 | . 23 Successful 14 | . 14 Failed 9 | . 9 Catastrophic 1 | . 1 Database Lockouts . | . . Manual 21 | . 21 Terminals 19 | . 19 Fabricators . | . . Repair Stations 2 | . 2 Recycling Units 2 | . 2 Scanalyzers . | . . Garrison Access . | . . Terminal Hacks 1 | . 1 Reprogram Traps 1 | . 1 Fabricator Hacks . | . . Repair Station Hacks 1 | . 1 Refit 1 | . 1 Recycling Unit Hacks . | . . Scanalyzer . | . . Garrison Access Hacks . | . . Unauthorized Hacks 12 | . 12 Terminals 12 | . 12 Track 1 | . 1 Assimilate 1 | . 1 Botnet 5 | . 5 Operators 1 | . 1 Skim 4 | . 4 Fabricators . | . . Repair Stations . | . . Recycling Units . | . . Scanalyzers . | . . Garrison Access . | . . Data Cores Recovered . | . . Used . | . . Hacking Detections 7 | . 7 Full Trace Events . | . . Feedback Events . | . . Feedback Blocked . | . . Robot Schematics Acquired . | . . Robots Built . | . . Authchips . | . . Time . | . . Total Robot Build Rating . | . . Part Schematics Acquired . | . . Parts Built . | . . Authchips . | . . Time . | . . Total Part Build Rating . | . . Part Studies Acquired . | . . Parts Repaired . | . . Time . | . . Parts Recycled . | . . Recycled Matter . | . . Retrieved Matter . | . . Retrieved Components . | . . Parts Scanalyzed . | . . Part Schematics Acquired . | . . Parts Damaged . | . . Bothacking | -11 -10 ------------ Run | Yrd Mat Used RIF Installer . | . . Robots Hacked . | . . Non-combat . | . . Combat . | . . Robot Hacks Applied . | . . Relay Couplers Released . | . . Fabnet Peak Effective % . | . . Robots Rewired . | . . Allies Hacked . | . . Hacks Repelled . | . . Allies | -11 -10 -------- Run | Yrd Mat Total Allies . | . . Largest Group . | . . Highest-Rated Group . | . . Highest-Rated Ally . | . . Total Orders . | . . Ally Attacks . | . . Total Damage . | . . Kills . | . . Allies Corrupted . | . . Allies Melted . | . . Intel | -11 -10 ------- Run | Yrd Mat Active Infowar (turns) 352 | . 352 ECM 352 | . 352 Robot Analysis Total . | . . Derelict Logs Recovered . | . . Drone Launches . | . . Drone Recoveries . | . . Exploration | -11 -10 ------------- Run | Yrd Mat Turns Passed 854 | 117 737 Spaces Moved 654 | 87 567 Core 14 | 12 2 Treads . | . . Legs . | . . Wheels 640 | 75 565 Hover . | . . Flight . | . . Fastest Speed 50 | 50 80 Average Speed 86 | 90 86 Slowest Speed 150 | 100 150 Overloaded Moves . | . . Propulsion Burnouts . | . . Robots Hopped . | . . Potential Cave-ins . | . . Cave-ins Triggered . | . . Exploration Rate (%) 45 | 4 86 Regions Visited 1 Branch Regions . Pre-discovered Areas . | . . Known Exits Taken . | . . Unknown Exits Taken 1 | 1 . Scrap Searched . | . . Spaces Dug 1 | . 1 Terrain Destroyed 1 | . 1 Melee 1 | . 1 Projectile . | . . AOE . | . . Terrain Rammed . | . . Walls Destroyed . | . . Machines Disabled . | . . Actions | -11 -10 --------- Run | Yrd Mat Total 791 | 112 679 Wait 7 | . 7 Move 653 | 86 567 Hop . | . . Pick Up 17 | 7 10 Fast Attach . | . . Attach 11 | 5 6 Detach 3 | 1 2 Swap 7 | . 7 Drop 5 | . 5 Fire 78 | 13 65 Melee 10 | . 10 Ram . | . . Kick . | . . Crush . | . . Escape Stasis . | . . Rewire . | . . Trap . | . . Miscellaneous . | . . Route ------- -11/Scrapyard -10/Materials (discovered 4 exits: [*Mat x2] / [*Min x2]) History --------- Turn | Location | Event 15 | -11/Scrapyard | Discovered new exit (range 15) 118 | -11/Scrapyard | Entered Materials 156 | -10/Materials | Discovered new exit (range 6) 301 | -10/Materials | Build established: Mutant 459 | -10/Materials | Discovered new exit (range 14) 459 | -10/Materials | Discovered new exit (range 8) 804 | -10/Materials | Discovered new exit (range 4) 818 | -10/Materials | Derelicts attacked the area 839 | -10/Materials | Core integrity fell below 50% 850 | -10/Materials | Core integrity fell below 20% 855 | -10/Materials | Destroyed by G-34 Mercenary with Small Laser Last Messages --------------- Testing... Terminal linked with 2 systems. Please expand to 2 more systems! 00790_ U-05 Engineer builds a Wall. 00804_ EXIT=FOUND 00818_ ALERT: Derelict incursion detected, rerouting patrols to target area. 00829_ Heat Sink destroyed. 00831_ Med. Laser destroyed. 00832_ G-47 Trooper knocked back. 00835_ Critical hit (Burn: +37). 00840_ Wheel destroyed. 00842_ Lgt. Ion Engine destroyed. 00843_ G-34 Mercenary suffers critical hit (Smash). 00843_ Destroyed Heat Sink. 00843_ G-34 Mercenary system corrupted by crushing effect. 00844_ Electrolysis Chamber disabled. 00853_ G-34 Mercenary IFF system glitched. Map ----- +----------------------------------------------------+ | ????#### ####### *** """ | | ?????? ?????# ** """ | | ?????#####?????# """ | | ???????????????# | | ???????????????# | | ???????????????# ####### | | ???????????????# #?????# ############ | | ???????????????# #####?????# #????# | | ???????????????# ########### #????# """ | | ???????????????# ## # #????# """ | | ???????????????# ## # #????# """ | | ???????????????# ## # #????# * | | ??????????? ???# ## """ # #????# | | ???????????#+### ## """"" # #????# "=" | | ??????????? ## """"" # #????# "R" | | ????????????? ## """"" # #????# """ | | ??????????????# ## """ # #????####### | | ??????????????# ?# # ############ | | ??????????????# #######+### | | ??????????????# | | ??????????????# | | ??????????????# | | ??????????????# #####+########## ###+######## | | ???????????????????# #?????# # ##### | | ???????????????????#""" #?????# < # """ ## | | ???????????????????#"" @ g#?????# # """ ## " | | ???????????????????#"""g #?????##### """ ## "" | | ???????????????????# #?????????# ## " | | ???????????????????# #?????????# ## | | ???????????????????# * #?????????############ | | ???????????????????# #?????????????# ![ # | | ???????????????????########?????????????# ![ # | | ????????????????????????????????????????# + | | ????????????????????????????????????????# # | | ????????????????????????????????????????# "T" # | | ????????????????????????????????????????# """ # | | ????????????????????????????????????????######## | | ???????????????????????????????????????????????? | | ???????????????????????????????????????????????? | | | | | | | | | | | | | | | | | | | | | | | +----------------------------------------------------+ Best States ------------- Heat Dissipation 35 Energy Generation 10 Energy Capacity 500 Matter Stores 300 Matter Capacity 300 Sight Range 16 Terrain Scan Density 10 ECM Strength 1 Evasion (%) 44 Item Schematics ----------------- None Robot Schematics ------------------ None Fabricated ------------ Nothing Repaired ---------- Nothing Studied --------- None Alien Tech Used ----------------- None Achievements -------------- None Challenges ------------ None Game ------ Seed PrecisionRocketCore Manual? 0 Play Time 00:18:04 Cumulative 13.9 hours Start 2026.03.21 @ 13:38:41 End 2026.03.21 @ 13:56:17 Sessions 1 Manual Loads 0 Difficulty Rogue Special Mode None Game No. 20 Rogue 20 Adventurer 0 Explorer 0 Win Type - Total 0 Types 0/0/0/0/0/0/0/0/0/0 Lore% 8 Gallery% 15 Achievement% 13 Wizard Run 0 Options --------- Layout 1 ASCII 0 Keyboard 0 Movement Mouse Keybinds 0 Fullscreen 1 Font 48/Smallcaps Map View 50x35 Zoom Use 0% Tactical HUD 1 Map Filters NONE Filters NONE Steam 1 RUN: de3e4f02-cd17-4481-acd1-971116a22eb4